fUSD/lending_fUSD_20240409
["ID","MTS","AMOUNT","RATE_DAILY","PERIOD"]
[322013003,1712686253504,-500.0,0.0002,2]
[322013004,1712686253514,-1782.83,0.0002,2]
[322013005,1712686253524,-500.0,0.0002,2]
[322013006,1712686253535,-500.0,0.0002,2]
[322013007,1712686253544,-1476.58,0.0002,2]
[322013008,1712686253554,-3187.26,0.0002,2]
[322013009,1712686253564,-500.0,0.0002,2]
[322013010,1712686253574,-1878.4,0.0002,2]
[322013011,1712686253584,-500.0,0.0002,2]
[322013012,1712686253593,-503.17,0.0002,2]
[322013013,1712686253603,-500.0,0.0002,2]
[322013014,1712686253613,-1695.71,0.0002,2]
[322013015,1712686253623,-558.41,0.0002,2]
[322013016,1712686253632,-737.11,0.0002,2]
[322013017,1712686253641,-768.45,0.0002,2]
[322013018,1712686253651,-500.0,0.0002,2]
[322013019,1712686253660,-500.0,0.0002,2]
[322013020,1712686253669,-500.0,0.0002,2]
[322013021,1712686253679,-576.39,0.0002,2]
[322013022,1712686253688,-500.0,0.0002,2]
[322013023,1712686253697,-547.66,0.0002,2]
[322013024,1712686253707,-500.0,0.0002,2]
[322013025,1712686253716,-4475.64,0.0002,2]
[322013026,1712686253726,-500.0,0.0002,2]
[322013027,1712686253736,-883.67,0.0002,2]
[322013028,1712686253745,-629.85,0.0002,2]
[322013029,1712686253754,-613.21,0.0002,2]
[322013030,1712686253764,-775.13,0.0002,2]
[322013031,1712686253773,-1310.87,0.0002,2]
[322013032,1712686253783,-500.0,0.0002,2]
[322013033,1712686253792,-500.0,0.0002,2]
[322013034,1712686253803,-748.54,0.0002,2]
[322013035,1712686253814,-2877.73,0.0002,2]
[322013036,1712686253825,-708.83,0.0002,2]
[322013037,1712686253837,-500.0,0.0002,2]
[322013038,1712686253846,-500.0,0.0002,2]
[322013039,1712686253855,-883.57,0.0002,2]
[322013040,1712686253866,-657.24,0.0002,2]
[322013041,1712686253875,-689.82,0.0002,2]
[322013042,1712686253885,-644.82,0.0002,2]
[322013043,1712686253894,-1383.01,0.0002,2]
[322013044,1712686253904,-500.0,0.0002,2]
[322013045,1712686253913,-500.0,0.0002,2]
[322013046,1712686253923,-570.84,0.0002,2]
[322013047,1712686253932,-500.0,0.0002,2]
[322013048,1712686253941,-500.0,0.0002,2]
[322013049,1712686253950,-500.0,0.0002,2]
[322013050,1712686253959,-500.0,0.0002,2]
[322013051,1712686253968,-794.73,0.0002,2]
[322013052,1712686253977,-658.52,0.0002,2]
[322013053,1712686253986,-7001.59,0.0002,2]
[322013054,1712686253996,-650.96,0.0002,2]
[322013055,1712686254005,-668.84,0.0002,2]
[322013056,1712686254015,-816.57,0.0002,2]
[322013057,1712686254024,-500.0,0.0002,2]
[322013058,1712686254034,-501.31,0.0002,2]
[322013059,1712686254043,-500.0,0.0002,2]
[322013060,1712686254052,-500.0,0.0002,2]
[322013061,1712686254061,-519.12,0.0002,2]
[322013062,1712686254071,-500.0,0.0002,2]
[322013063,1712686254080,-773.21,0.0002,2]
[322013064,1712686254089,-538.98,0.0002,2]
[322013065,1712686254099,-1945.67,0.0002,2]
[322013066,1712686254108,-500.0,0.0002,2]
[322013067,1712686254120,-795.19,0.0002,2]
[322013068,1712686254131,-500.0,0.0002,2]
[322013069,1712686254140,-500.0,0.0002,2]
[322013070,1712686254149,-3633.26,0.0002,2]
[322013071,1712686254159,-1901.24,0.0002,2]
[322013072,1712686254168,-500.0,0.0002,2]
[322013073,1712686254177,-500.0,0.0002,2]
[322013074,1712686254186,-938.91,0.0002,2]
[322013075,1712686254196,-645.19486296,0.0002,2]
[322013076,1712686254206,-1155.62,0.0002,2]
[322013077,1712686254215,-600.58,0.0002,2]
[322013078,1712686254225,-500.0,0.0002,2]
[322013079,1712686254237,-1027.16,0.0002,2]
[322013080,1712686254246,-568.8,0.0002,2]
[322013081,1712686254255,-762.2,0.0002,2]
[322013082,1712686254264,-809.1,0.0002,2]
[322013083,1712686254274,-500.0,0.0002,2]
[322013084,1712686254283,-3121.22,0.0002,2]
[322013085,1712686254293,-1134.94,0.0002,2]
[322013086,1712686254304,-4199.15,0.0002,2]
[322013087,1712686254312,-1937.54,0.0002,2]
[322013088,1712686254323,-692.91,0.0002,2]
[322013089,1712686254337,-1955.83,0.0002,2]
[322013090,1712686254346,-175.00976383,0.0002,2]
[322013091,1712686254355,-500.0,0.0002,2]
[322013092,1712686254367,-500.0,0.0002,2]
[322013093,1712686254651,-500.0,0.0002,2]
[322013094,1712686254661,-500.0,0.0002,2]
[322013095,1712686254671,-8468.04,0.0002,2]
[322013096,1712686254681,-690.84,0.0002,2]
[322013097,1712686254691,-942.06,0.0002,2]
[322013098,1712686254700,-851.69,0.0002,2]
[322013099,1712686254711,-982.4,0.0002,2]
[322013100,1712686254721,-500.0,0.0002,2]
[322013101,1712686254732,-415.0020456,0.0002,2]
[322013102,1712686254742,-500.0,0.0002,2]
[322013103,1712686254752,-621.16,0.0002,2]
[322013104,1712686254762,-1672.92,0.0002,2]
[322013105,1712686254771,-545.07,0.0002,2]
[322013106,1712686254782,-758.3,0.0002,2]
[322013107,1712686254792,-2398.18,0.0002,2]
[322013108,1712686254802,-500.0,0.0002,2]
[322013109,1712686254811,-2008.9,0.0002,2]
[322013110,1712686254820,-1088.74,0.0002,2]
[322013111,1712686254829,-1484.91,0.0002,2]
[322013112,1712686254839,-1232.55,0.0002,2]
[322013113,1712686254848,-500.0,0.0002,2]
[322013114,1712686254858,-500.0,0.0002,2]
[322013115,1712686254871,-2076.42,0.0002,2]
[322013116,1712686254881,-1117.58,0.0002,2]
[322013117,1712686254891,-500.0,0.0002,2]
[322013118,1712686254903,-731.83,0.0002,2]
[322013119,1712686254913,-770.95,0.0002,2]
[322013120,1712686254925,-1091.7,0.0002,2]
[322013121,1712686254936,-500.0,0.0002,2]
[322013122,1712686254947,-500.0,0.0002,2]
[322013123,1712686254957,-778.97,0.0002,2]
[322013124,1712686254968,-1203.97,0.0002,2]
[322013125,1712686254979,-500.0,0.0002,2]
[322013126,1712686254988,-500.0,0.0002,2]
[322013127,1712686254998,-500.0,0.0002,2]
[322013128,1712686255007,-705.57,0.0002,2]
[322013129,1712686255017,-578.67,0.0002,2]
[322013130,1712686255027,-500.0,0.0002,2]
[322013131,1712686255037,-11817.50743022,0.00020003,2]
[322013132,1712686255047,-1633.2886154,0.00020003,2]
[322013133,1712686255058,-200.0,0.00020012,2]
[322013134,1712686255067,-2749.60908708,0.00020022,2]
[322013135,1712686255077,-768.29,0.00020036,2]
[322013136,1712686255087,-200.72093415,0.00020149,2]
[322013137,1712686255098,-595.24,0.00020165,2]
[322013138,1712686255110,-500.0,0.00020177,2]
[322013139,1712686255122,-1259.0,0.00020177,2]
[322013140,1712686255131,-435.0,0.00020177,2]
[322013141,1712686255141,-805.0,0.00020177,2]
[322013142,1712686255153,-607.0,0.00020177,2]
[322013143,1712686255162,-1944.0,0.00020177,2]
[322013144,1712686255173,-281.556,0.00020177,2]
[322013145,1712686255183,-398.0,0.00020177,2]
[322013146,1712686255194,-217.444,0.00020177,2]
[322013147,1712686255205,-1140.0,0.00020177,2]
[322013148,1712686255215,-1467.0,0.00020177,2]
[322013149,1712686255227,-3033.0,0.00020177,2]
[322013150,1712686255237,-172.298,0.00020177,2]
[322013151,1712686255246,-2432.0,0.00020177,2]
[322013152,1712686255256,-1633.0,0.00020177,2]
[322013153,1712686255265,-2749.60908708,0.00020197,2]
[322013154,1712686255274,-442.0,0.00020207,2]
[322013155,1712686255283,-354.0,0.00020207,2]
[322013156,1712686255292,-223.0,0.00020207,2]
[322013157,1712686255301,-37530.0,0.00020207,2]
[322013158,1712686255312,-1312.0,0.00020207,2]
[322013159,1712686255322,-5849.117,0.00020207,2]
[322013160,1712686255333,-2460.0,0.00020207,2]
[322013161,1712686255344,-4795.0,0.00020207,2]
[322013162,1712686255354,-234.964,0.00020207,2]
[322013163,1712686255365,-315.1931899,0.00020268,2]
[322013164,1712686255375,-500.0,0.00020273,2]
[322013165,1712686255385,-500.0,0.00020273,2]
[322013166,1712686255395,-500.0,0.00020273,2]
[322013167,1712686255405,-500.0,0.00020273,2]
[322013168,1712686255414,-354.94676342,0.00020273,2]
[322013169,1712686255425,-500.0,0.00020273,2]
[322013170,1712686255435,-500.0,0.00020273,2]
[322013171,1712686255445,-385.52064866,0.00020273,2]
[322013172,1712686255454,-500.0,0.00020273,2]
[322013173,1712686255464,-500.0,0.00020273,2]
[322013174,1712686255473,-500.0,0.00020273,2]
[322013175,1712686255483,-500.0,0.00020273,2]
[322013176,1712686255492,-564.6,0.00020273,2]
[322013177,1712686255501,-500.0,0.00020273,2]
[322013178,1712686255511,-500.0,0.00020273,2]
[322013179,1712686255521,-500.0,0.00020273,2]
[322013180,1712686255530,-500.0,0.00020273,2]
[322013181,1712686255539,-500.0,0.00020273,2]
[322013182,1712686255549,-500.0,0.00020273,2]
[322013183,1712686255558,-513.1,0.00020273,2]
[322013184,1712686255568,-500.0,0.00020273,2]
[322013185,1712686255579,-500.0,0.00020273,2]
[322013186,1712686255589,-500.0,0.00020273,2]
[322013187,1712686255598,-158.87722315,0.00020273,2]
[322013188,1712686255608,-500.0,0.00020273,2]
[322013189,1712686255620,-500.0,0.00020273,2]
[322013190,1712686255629,-656.13,0.00020273,2]
[322013191,1712686255638,-500.0,0.00020273,2]
[322013192,1712686255648,-500.0,0.00020273,2]
[322013193,1712686255657,-552.06082924,0.00020273,2]
[322013194,1712686255669,-500.0,0.00020273,2]
[322013195,1712686255678,-500.0,0.00020273,2]
[322013196,1712686255688,-500.0,0.00020273,2]
[322013197,1712686255697,-500.0,0.00020273,2]
[322013198,1712686255707,-500.0,0.00020273,2]
[322013199,1712686255716,-500.0,0.00020273,2]
[322013200,1712686255725,-730.36,0.00020273,2]
[322013201,1712686255735,-500.0,0.00020273,2]
[322013202,1712686255745,-500.0,0.00020273,2]
[322013203,1712686255755,-500.0,0.00020273,2]
[322013204,1712686255765,-500.0,0.00020273,2]
[322013205,1712686255774,-500.0,0.00020273,2]
[322013206,1712686255784,-500.0,0.00020273,2]
[322013207,1712686255793,-500.0,0.00020273,2]
[322013208,1712686255804,-500.0,0.00020273,2]
[322013209,1712686255814,-500.0,0.00020273,2]
[322013210,1712686255824,-500.0,0.00020273,2]
[322013211,1712686255834,-500.0,0.00020273,2]
[322013212,1712686255843,-500.0,0.00020273,2]
[322013213,1712686255853,-500.0,0.00020273,2]
[322013214,1712686255862,-276.97133226,0.00020273,2]
[322013215,1712686255873,-500.0,0.00020273,2]
[322013216,1712686255883,-500.0,0.00020273,2]
[322013217,1712686255892,-563.81,0.00020273,2]
[322013218,1712686255902,-500.0,0.00020273,2]
[322013219,1712686255911,-500.0,0.00020273,2]
[322013220,1712686255922,-500.0,0.00020273,2]
[322013221,1712686255931,-500.0,0.00020273,2]
[322013222,1712686255941,-471.72008409,0.00020273,2]
[322013223,1712686255951,-500.0,0.00020273,2]
[322013224,1712686255961,-500.0,0.00020273,2]
[322013225,1712686255970,-500.0,0.00020273,2]
[322013226,1712686255980,-500.0,0.00020273,2]
[322013227,1712686255990,-500.0,0.00020273,2]
[322013228,1712686255999,-646.53,0.00020273,2]
[322013229,1712686256009,-500.0,0.00020273,2]
[322013230,1712686256018,-500.0,0.00020273,2]
[322013231,1712686256027,-332.02954777,0.00020273,2]
[322013232,1712686256038,-505.77,0.00020273,2]
[322013233,1712686256046,-500.0,0.00020273,2]
[322013234,1712686256055,-500.0,0.00020273,2]
[322013235,1712686256065,-500.0,0.00020273,2]
[322013236,1712686256074,-500.0,0.00020273,2]
[322013237,1712686256085,-806.48,0.00020273,2]
[322013238,1712686256096,-500.0,0.00020273,2]
[322013239,1712686256105,-500.0,0.00020273,2]
[322013240,1712686256116,-500.0,0.00020273,2]
[322013241,1712686256127,-500.0,0.00020273,2]
[322013242,1712686256137,-500.0,0.00020273,2]
[322013243,1712686256147,-500.0,0.00020273,2]
[322013244,1712686256156,-500.0,0.00020273,2]
[322013245,1712686256168,-500.0,0.00020273,2]
[322013246,1712686256178,-500.0,0.00020273,2]
[322013247,1712686256189,-500.0,0.00020273,2]
[322013248,1712686256199,-518.39,0.00020273,2]
[322013249,1712686256209,-500.0,0.00020273,2]
[322013250,1712686256219,-500.0,0.00020273,2]
[322013251,1712686256233,-261.21978042,0.00020273,2]
[322013252,1712686256242,-500.0,0.00020273,2]
[322013253,1712686256252,-500.0,0.00020273,2]
[322013254,1712686256261,-500.0,0.00020273,2]
[322013255,1712686256270,-527.43,0.00020273,2]
[322013256,1712686256279,-500.0,0.00020273,2]
[322013257,1712686256288,-150.0,0.00020273,2]
[322013258,1712686256297,-500.0,0.00020273,2]
[322013259,1712686256308,-500.0,0.00020273,2]
[322013260,1712686256318,-500.0,0.00020273,2]
[322013261,1712686256327,-500.0,0.00020273,2]
[322013262,1712686256337,-500.0,0.00020273,2]
[322013263,1712686256346,-500.0,0.00020273,2]
[322013264,1712686256356,-500.0,0.00020273,2]
[322013265,1712686256365,-500.0,0.00020273,2]
[322013266,1712686256374,-500.0,0.00020273,2]
[322013267,1712686256383,-500.0,0.00020273,2]
[322013268,1712686256394,-500.0,0.00020273,2]
[322013269,1712686256403,-500.0,0.00020273,2]
[322013270,1712686256412,-500.0,0.00020273,2]
[322013271,1712686256421,-500.0,0.00020273,2]
[322013272,1712686256430,-500.0,0.00020273,2]
[322013273,1712686256440,-500.0,0.00020273,2]
[322013274,1712686256450,-836.19,0.00020273,2]
[322013275,1712686256459,-1060.74,0.00020273,2]
[322013276,1712686256469,-500.0,0.00020273,2]
[322013277,1712686256478,-500.0,0.00020273,2]
[322013278,1712686256488,-1223.61,0.00020273,2]
[322013279,1712686256497,-521.06599045,0.00020273,2]
[322013280,1712686256508,-500.0,0.00020273,2]
[322013281,1712686256517,-500.0,0.00020273,2]
[322013282,1712686256527,-660.46,0.00020273,2]
[322013283,1712686256536,-500.0,0.00020273,2]
[322013284,1712686256547,-500.0,0.00020273,2]
[322013285,1712686256557,-500.0,0.00020273,2]
[322013286,1712686256567,-556.56,0.00020273,2]
[322013287,1712686256577,-588.59,0.00020273,2]
[322013288,1712686256587,-1993.49,0.00020273,2]
[322013289,1712686256596,-792.61,0.00020273,2]
[322013290,1712686256606,-500.0,0.00020273,2]
[322013291,1712686256616,-697.64,0.00020273,2]
[322013292,1712686256625,-594.59,0.00020273,2]
[322013293,1712686256635,-9401.57,0.00020273,2]
[322013294,1712686256644,-500.0,0.00020273,2]
[322013295,1712686256654,-1246.94,0.00020273,2]
[322013296,1712686256663,-500.0,0.00020273,2]
[322013297,1712686256674,-500.0,0.00020273,2]
[322013298,1712686256684,-1197.2,0.00020273,2]
[322013299,1712686256694,-1045.56,0.00020273,2]
[322013300,1712686256703,-869.28,0.00020273,2]
[322013301,1712686256714,-500.0,0.00020273,2]
[322013302,1712686256724,-500.0,0.00020273,2]
[322013303,1712686256733,-2053.99,0.00020273,2]
[322013304,1712686256743,-820.51,0.00020273,2]
[322013305,1712686256752,-500.0,0.00020273,2]
[322013306,1712686256764,-735.71,0.00020273,2]
[322013307,1712686256774,-500.0,0.00020273,2]
[322013308,1712686256786,-544.79,0.00020273,2]
[322013309,1712686256796,-500.0,0.00020273,2]
[322013310,1712686256806,-1425.24,0.00020273,2]
[322013311,1712686256815,-569.31,0.00020273,2]
[322013312,1712686256825,-890.66,0.00020273,2]
[322013313,1712686256834,-530.18,0.00020273,2]
[322013314,1712686256843,-2978.08,0.00020273,2]
[322013315,1712686256853,-919.64,0.00020273,2]
[322013316,1712686256862,-12759.84,0.00020273,2]
[322013317,1712686256873,-500.0,0.00020273,2]
[322013318,1712686256883,-1229.32,0.00020273,2]
[322013319,1712686256893,-1271.59,0.00020273,2]
[322013320,1712686256902,-500.0,0.00020273,2]
[322013321,1712686256912,-500.0,0.00020273,2]
[322013322,1712686256921,-500.0,0.00020273,2]
[322013323,1712686256930,-500.0,0.00020273,2]
[322013324,1712686256941,-3301.44,0.00020273,2]
[322013325,1712686256951,-500.0,0.00020273,2]
[322013326,1712686256960,-936.64,0.00020273,2]
[322013327,1712686256970,-500.0,0.00020273,2]
[322013328,1712686256980,-1058.76,0.00020273,2]
[322013329,1712686256990,-500.0,0.00020273,2]
[322013330,1712686257000,-1994.87,0.00020273,2]
[322013331,1712686257010,-976.55,0.00020273,2]
[322013332,1712686257020,-500.0,0.00020273,2]
[322013333,1712686257030,-500.0,0.00020273,2]
[322013334,1712686257042,-1782.83,0.00020273,2]
[322013335,1712686257052,-500.0,0.00020273,2]
[322013336,1712686257062,-500.0,0.00020273,2]
[322013337,1712686257072,-1476.58,0.00020273,2]
[322013338,1712686257082,-3187.26,0.00020273,2]
[322013339,1712686257092,-500.0,0.00020273,2]
[322013340,1712686257102,-1878.4,0.00020273,2]
[322013341,1712686257113,-500.0,0.00020273,2]
[322013342,1712686257124,-503.17,0.00020273,2]
[322013343,1712686257134,-500.0,0.00020273,2]
[322013344,1712686257144,-1695.71,0.00020273,2]
[322013345,1712686257154,-558.41,0.00020273,2]
[322013346,1712686257164,-737.11,0.00020273,2]
[322013347,1712686257174,-768.45,0.00020273,2]
[322013348,1712686257184,-500.0,0.00020273,2]
[322013349,1712686257194,-500.0,0.00020273,2]
[322013350,1712686257205,-500.0,0.00020273,2]
[322013351,1712686257214,-576.39,0.00020273,2]
[322013352,1712686257226,-500.0,0.00020273,2]
[322013353,1712686257235,-547.66,0.00020273,2]
[322013354,1712686257244,-500.0,0.00020273,2]
[322013355,1712686257253,-4475.64,0.00020273,2]
[322013356,1712686257263,-500.0,0.00020273,2]
[322013357,1712686257275,-883.67,0.00020273,2]
[322013358,1712686257285,-629.85,0.00020273,2]
[322013359,1712686257296,-613.21,0.00020273,2]
[322013360,1712686257308,-775.13,0.00020273,2]
[322013361,1712686257318,-1310.87,0.00020273,2]
[322013362,1712686257328,-465.68050481,0.00020273,2]
[322013363,1712686257337,-500.0,0.00020273,2]
[322013364,1712686257347,-748.54,0.00020273,2]
[322013365,1712686257357,-2877.73,0.00020273,2]
[322013366,1712686257367,-708.83,0.00020273,2]
[322013367,1712686257378,-500.0,0.00020273,2]
[322013368,1712686257388,-883.57,0.00020273,2]
[322013369,1712686257398,-500.0,0.00020273,2]
[322013370,1712686257408,-657.24,0.00020273,2]
[322013371,1712686257417,-689.82,0.00020273,2]
[322013372,1712686257426,-644.82,0.00020273,2]
[322013373,1712686257436,-1383.01,0.00020273,2]
[322013374,1712686257445,-500.0,0.00020273,2]
[322013375,1712686257457,-500.0,0.00020273,2]
[322013376,1712686257466,-570.84,0.00020273,2]
[322013377,1712686257475,-500.0,0.00020273,2]
[322013378,1712686257486,-500.0,0.00020273,2]
[322013379,1712686257496,-500.0,0.00020273,2]
[322013380,1712686257506,-794.73,0.00020273,2]
[322013381,1712686257516,-658.52,0.00020273,2]
[322013382,1712686257525,-7001.59,0.00020273,2]
[322013383,1712686257535,-650.96,0.00020273,2]
[322013384,1712686257545,-668.84,0.00020273,2]
[322013385,1712686257554,-816.57,0.00020273,2]
[322013386,1712686257562,-289.66,0.00020273,2]
[322013387,1712686257572,-501.31,0.00020273,2]
[322013388,1712686257581,-500.0,0.00020273,2]
[322013389,1712686257590,-500.0,0.00020273,2]
[322013390,1712686257599,-519.12,0.00020273,2]
[322013391,1712686257609,-500.0,0.00020273,2]
[322013392,1712686257620,-773.21,0.00020273,2]
[322013393,1712686257629,-1945.67,0.00020273,2]
[322013394,1712686257639,-538.98,0.00020273,2]
[322013395,1712686257649,-500.0,0.00020273,2]
[322013396,1712686257659,-795.19,0.00020273,2]
[322013397,1712686257668,-500.0,0.00020273,2]
[322013398,1712686257677,-500.0,0.00020273,2]
[322013399,1712686257687,-3633.26,0.00020273,2]
[322013400,1712686257701,-1901.24,0.00020273,2]
[322013401,1712686257714,-500.0,0.00020273,2]
[322013402,1712686257726,-500.0,0.00020273,2]
[322013403,1712686257741,-938.91,0.00020273,2]
[322013404,1712686257754,-1155.62,0.00020273,2]
[322013405,1712686257764,-600.58,0.00020273,2]
[322013406,1712686257775,-500.0,0.00020273,2]
[322013407,1712686257788,-1027.16,0.00020273,2]
[322013408,1712686257801,-762.2,0.00020273,2]
[322013409,1712686257812,-568.8,0.00020273,2]
[322013410,1712686257825,-809.1,0.00020273,2]
[322013411,1712686257837,-500.0,0.00020273,2]
[322013412,1712686257849,-3121.22,0.00020273,2]
[322013413,1712686257862,-1134.94,0.00020273,2]
[322013414,1712686257876,-4199.15,0.00020273,2]
[322013415,1712686257886,-1937.54,0.00020273,2]
[322013416,1712686257897,-692.91,0.00020273,2]
[322013417,1712686257909,-1955.83,0.00020273,2]
[322013418,1712686257921,-500.0,0.00020273,2]
[322013419,1712686257933,-500.0,0.00020273,2]
[322013420,1712686257944,-500.0,0.00020273,2]
[322013421,1712686257956,-500.0,0.00020273,2]
[322013422,1712686257967,-8468.04,0.00020273,2]
[322013423,1712686257979,-690.84,0.00020273,2]
[322013424,1712686257991,-942.06,0.00020273,2]
[322013425,1712686258002,-851.69,0.00020273,2]
[322013426,1712686258013,-982.4,0.00020273,2]
[322013427,1712686258023,-500.0,0.00020273,2]
[322013428,1712686258036,-500.0,0.00020273,2]
[322013429,1712686258048,-621.16,0.00020273,2]
[322013430,1712686258060,-1672.92,0.00020273,2]
[322013431,1712686258073,-545.07,0.00020273,2]
[322013432,1712686258084,-758.3,0.00020273,2]
[322013433,1712686258096,-2398.18,0.00020273,2]
[322013434,1712686258108,-500.0,0.00020273,2]
[322013435,1712686258120,-2008.9,0.00020273,2]
[322013436,1712686258131,-1088.74,0.00020273,2]
[322013437,1712686258143,-1484.91,0.00020273,2]
[322013438,1712686258154,-1232.55,0.00020273,2]
[322013439,1712686258166,-500.0,0.00020273,2]
[322013440,1712686258179,-500.0,0.00020273,2]
[322013441,1712686258191,-2076.42,0.00020273,2]
[322013442,1712686258203,-1117.58,0.00020273,2]
[322013443,1712686258216,-500.0,0.00020273,2]
[322013444,1712686258232,-731.83,0.00020273,2]
[322013445,1712686258243,-770.95,0.00020273,2]
[322013446,1712686258252,-1091.7,0.00020273,2]
[322013447,1712686258262,-500.0,0.00020273,2]
[322013448,1712686258274,-500.0,0.00020273,2]
[322013449,1712686258285,-778.97,0.00020273,2]
[322013450,1712686258297,-1203.97,0.00020273,2]
[322013451,1712686258309,-529.09912266,0.00020273,2]
[322013452,1712686258320,-500.0,0.00020273,2]
[322013453,1712686258332,-500.0,0.00020273,2]
[322013454,1712686258345,-705.57,0.00020273,2]
[322013455,1712686258356,-578.67,0.00020273,2]
[322013456,1712686258369,-500.0,0.00020273,2]
[322013457,1712686258379,-164.13,0.00020291,2]
[322013458,1712686258390,-262.992,0.00020292,2]
[322013459,1712686258403,-11817.50743022,0.00020302,2]
[322013460,1712686258414,-1633.2886154,0.00020302,2]
[322013461,1712686258425,-2749.60908708,0.00020373,2]
[322013462,1712686258436,-1000.0,0.00020382,2]
[322013463,1712686258447,-300.0,0.00020382,2]
[322013464,1712686258458,-500.0,0.00020382,2]
[322013465,1712686258469,-1407.242,0.00020474,2]
[322013466,1712686258481,-977.622,0.00020474,2]
[322013467,1712686258492,-2287.0,0.00020474,2]
[322013468,1712686258503,-464.551,0.00020474,2]
[322013469,1712686258515,-150.0,0.00020474,2]
[322013470,1712686258527,-1226.0,0.00020474,2]
[322013471,1712686258538,-500.0,0.00020494,2]
[322013472,1712686258550,-150.0,0.000205,2]
[322013473,1712686258561,-200.72093415,0.00020524,2]
[322013474,1712686258572,-544.0,0.00020547,2]
[322013475,1712686258583,-550.0,0.00020547,2]
[322013476,1712686258594,-896.0,0.00020547,2]
[322013477,1712686258605,-169.99897726,0.00020547,2]
[322013478,1712686258616,-500.0,0.00020547,2]
[322013479,1712686258629,-500.0,0.00020547,2]
[322013480,1712686258639,-500.0,0.00020547,2]
[322013481,1712686258651,-500.0,0.00020547,2]
[322013482,1712686258663,-508.22930191,0.00020547,2]
[322013483,1712686258674,-500.0,0.00020547,2]
[322013484,1712686258686,-500.0,0.00020547,2]
[322013485,1712686258697,-500.0,0.00020547,2]
[322013486,1712686258708,-500.0,0.00020547,2]
[322013487,1712686258719,-564.6,0.00020547,2]
[322013488,1712686258730,-500.0,0.00020547,2]
[322013489,1712686258741,-500.0,0.00020547,2]
[322013490,1712686258751,-500.0,0.00020547,2]
[322013491,1712686258762,-500.0,0.00020547,2]
[322013492,1712686258774,-283.86681523,0.00020547,2]
[322013493,1712686258785,-500.0,0.00020547,2]
[322013494,1712686258795,-513.1,0.00020547,2]
[322013495,1712686258807,-500.0,0.00020547,2]
[322013496,1712686258818,-500.0,0.00020547,2]
[322013497,1712686258829,-500.0,0.00020547,2]
[322013498,1712686258839,-500.0,0.00020547,2]
[322013499,1712686258850,-500.0,0.00020547,2]
[322013500,1712686258860,-656.13,0.00020547,2]
[322013501,1712686258872,-500.0,0.00020547,2]
[322013502,1712686258883,-345.85338832,0.00020547,2]